[Event "WJCC U20 Open 2019"]
[Site "New Delhi"]
[Date "2019.10.24"]
[Round "10.34"]
[White "Sankalp Gupta"]
[Black "Tifferet, Shaked"]
[Result "1-0"]
[ECO "E90"]
[WhiteElo "2369"]
[BlackElo "2224"]
[Annotator "NA"]
[PlyCount "83"]
[EventDate "2019.10.15"]
[EventType "swiss"]
[EventCountry "IND"]
[SourceTitle "playchess.com"]
[Source "ChessBase"]
[SourceQuality "1"]
[TimeControl "40/5400+30:1800+30"]

1. c4 {[%emt 0:03:20]} Nf6 {[%emt 0:00:00]} 2. Nc3 {[%emt 0:00:12]} g6 {[%emt 0:00:51]} 3. e4 {[%emt 0:01:22]} d6 {[%emt 0:00:07]} 4. d4 {[%emt 0:00:29]} Bg7 {[%emt 0:00:04]} 5. Nf3 {[%emt 0:00:06]} O-O {[%emt 0:00:06]} 6. h3 {[%emt 0:00:16]} e5 {[%emt 0:03:51]} 7. d5 {[%emt 0:00:10]} Nbd7 {[%emt 0:02:58]} 8. Be3 {[%emt 0:05:44]} Nc5 {[%emt 0:07:27]} 9. Nd2 {[%emt 0:01:28]} a5 {[%emt 0:02:52]} 10. Be2 {[%emt 0:06:18]} c6 {[%emt 0:00:49]} 11. Qc2 {[%emt 0:04:18]} a4 {[%emt 0:08:38]} 12. dxc6 {[%emt 0:02:00]} bxc6 {[%emt 0:00:31]} 13. Bxc5 {[%emt 0:00:19]} dxc5 {[%emt 0:00:06]} 14. Nxa4 {[%emt 0:00:10]} Qa5 {[%emt 0:13:43]} 15. Nc3 {[%emt 0:00:33]} Ne8 {[%emt 0:01:29]} 16. O-O {[%emt 0:10:38]} Nc7 {[%emt 0:00:27]} 17. Nb3 {[%emt 0:07:14]} Qa7 {[%emt 0:04:48]} 18. Nb1 {[%emt 0:05:44]} h5 {[%emt 0:13:40]} 19. N1d2 {[%emt 0:02:57]} Ne6 {[%emt 0:00:25]} 20. Rfd1 {[%emt 0:00:31]} f5 {[%emt 0:05:08]} 21. Nf3 {[%emt 0:11:08]} Nf4 {[%emt 0:08:02]} 22. Bf1 {[%emt 0:04:28]} Qe7 {[%emt 0:04:37]} 23. Re1 {[%emt 0:01:12]} g5 {[%emt 0:05:06]} 24. Nfd2 {[%emt 0:07:17]} g4 {[%emt 0:01:19]} 25. Qc3 {[%emt 0:03:29]} Nxh3+ {[%emt 0:07:28]} 26. gxh3 {[%emt 0:03:07]} f4 {[%emt 0:00:05]} 27. f3 {[%emt 0:05:05]} gxh3 {[%emt 0:06:44]} 28. Kh1 {[%emt 0:07:07]} Rf6 {[%emt 0:00:08]} 29. Qd3 {[%emt 0:01:24]} Rg6 {[%emt 0:00:17]} 30. Qe2 {[%emt 0:00:04]} Bf6 {[%emt 0:02:37]} 31. Qf2 {[%emt 0:02:40]} Qg7 {[%emt 0:00:35]} 32. Re2 {[%emt 0:04:03]} Kh8 {[%emt 0:00:29]} 33. Qxc5 {[%emt 0:00:41]} Bd7 {[%emt 0:00:21]} 34. Rh2 {[%emt 0:00:16]} Rg3 {[%emt 0:00:28]} 35. Nc1 {[%emt 0:00:34]} Rg8 {[%emt 0:00:21]} 36. Ne2 {[%emt 0:00:01]} Bh4 {[%emt 0:00:44]} 37. a4 {[%emt 0:00:52]} Bg4 {[%emt 0:00:34]} 38. fxg4 {[%emt 0:00:53]} Qxg4 {[%emt 0:00:31]} 39. Qxe5+ {[%emt 0:00:45]} Rg7 {[%emt 0:00:05]} 40. Nxg3 {[%emt 0:00:31]} Qxg3 {[%emt 0:00:55]} 41. Qxh5+ {[%emt 0:01:22]} Kg8 {[%emt 0:04:33]} 42. Bxh3 {[%emt 0:00:20]} 1-0

[Event "WJCC U20 Open 2019"]
[Site "New Delhi"]
[Date "2019.10.24"]
[Round "10.35"]
[White "Rakesh Kumar Jena"]
[Black "Maltezeanu, Stefan"]
[Result "1/2-1/2"]
[ECO "A07"]
[WhiteElo "2355"]
[BlackElo "2102"]
[Annotator "NA"]
[PlyCount "99"]
[EventDate "2019.10.15"]
[EventType "swiss"]
[EventCountry "IND"]
[SourceTitle "playchess.com"]
[Source "ChessBase"]
[SourceQuality "1"]
[TimeControl "40/5400+30:1800+30"]

1. Nf3 d5 2. g3 Nf6 3. Bg2 c6 4. O-O Bg4 5. h3 Bh5 6. d4 e6 7. c4 Nbd7 8. Nc3 Be7 9. Ne5 O-O 10. g4 Bg6 11. Nxg6 hxg6 12. cxd5 exd5 13. f4 Qb6 14. e3 Bb4 15. g5 Bxc3 16. bxc3 Ne4 17. Bxe4 dxe4 18. Qg4 f5 19. gxf6 Nxf6 20. Qxg6 Qa6 21. Rf2 Qd3 22. Bd2 Rae8 23. f5 Rf7 24. Kh1 Ree7 25. Rg1 Kf8 26. Qg3 a6 27. Qb8+ Re8 28. Qd6+ Kg8 29. Rg3 Qb1+ 30. Kh2 Qxa2 31. Rfg2 Qd5 32. Qb4 Qxf5 33. c4 b5 34. Bc3 Ree7 35. d5 cxd5 36. cxb5 axb5 37. Qxb5 Rb7 38. Qc6 Qd7 39. Qxd7 Rbxd7 40. Bd4 Ne8 41. Rg5 Nc7 42. Rg6 Nb5 43. Be5 Na3 44. R6g5 Nc4 45. Bd4 Na5 46. Rc2 Nb3 47. Be5 Rfe7 48. h4 Re8 49. Rcg2 Ree7 50. Rc2 1/2-1/2

[Event "WJCC U20 Open 2019"]
[Site "New Delhi"]
[Date "2019.10.24"]
[Round "10.36"]
[White "Risting, Eivind Olav"]
[Black "Eugene, Floryan"]
[Result "1-0"]
[ECO "E71"]
[WhiteElo "2289"]
[BlackElo "2346"]
[Annotator "NA RC"]
[PlyCount "136"]
[EventDate "2019.10.15"]
[EventType "swiss"]
[EventCountry "IND"]
[SourceTitle "playchess.com"]
[Source "ChessBase"]
[SourceQuality "1"]
[TimeControl "40/5400+30:1800+30"]

1. d4 {[%emt 0:00:00]} Nf6 {[%emt 0:00:00]} 2. c4 {[%emt 0:00:00]} g6 {[%emt 0:00:00]} 3. Nc3 {[%emt 0:00:00]} Bg7 {[%emt 0:00:00]} 4. e4 {[%emt 0:00:05]} d6 {[%emt 0:00:00]} 5. h3 {[%emt 0:00:24]} O-O {[%emt 0:02:28]} 6. Be3 {[%emt 0:00:07]} e5 {[%emt 0:03:21]} 7. d5 {[%emt 0:00:19]} Na6 {[%emt 0:00:18]} 8. g4 {[%emt 0:02:05] E71: King's Indian: 4 e4 d6 5 h3} Nc5 {[%emt 0:07:06]} 9. f3 {[%emt 0:01:48]} a5 {[%emt 0:00:24]} (9... c6 10. Qd2 cxd5 11. cxd5 Bd7 12. Nge2 h5 13. Nc1 Rc8 14. Nb3 Nxb3 15. axb3 {0-1 (64) Grandelius,N (2691)-McShane,L (2688) Eskilstuna 2019}) 10. Qd2 $146 {[%emt 0:02:30]} ({Predecessor:} 10. h4 c6 11. Qd2 cxd5 12. cxd5 Bd7 13. h5 a4 14. Nge2 Qa5 {0-1 (54) Almeida Quintana,O (2550)-Garcia Pantoja,R (2514) Santa Clara 2019}) 10... a4 {[%emt 0:18:16]} 11. Nge2 {[%emt 0:02:35]} c6 {[%emt 0:02:28]} 12. Ng3 {[%emt 0:01:31]} cxd5 {[%emt 0:04:13]} 13. cxd5 {[%emt 0:01:36]} Bd7 {[%emt 0:03:34]} 14. h4 {[%emt 0:02:32]} Qa5 {[%emt 0:00:59]} 15. h5 {[%emt 0:01:38]} Rfc8 {[%emt 0:08:28]} 16. hxg6 {[%emt 0:05:35]} fxg6 {[%emt 0:02:29]} 17. g5 {[%emt 0:08:47]} Ne8 {[%emt 0:01:50]} 18. Qh2 {[%emt 0:09:32]} a3 {[%emt 0:00:31]} 19. Qxh7+ {[%emt 0:05:31]} Kf7 $16 {[%emt 0:00:43]} 20. Bd2 {[%emt 0:25:19]} axb2 {[%emt 0:00:24]} 21. Rb1 {[%emt 0:01:33]} Na4 {[%emt 0:02:09]} 22. Nd1 {[%emt 0:07:08]} Qc5 {[%emt 0:00:56]} 23. Rh6 {[%emt 0:02:32]} Qc2 {[%emt 0:07:01]} 24. Rxg6 {[%emt 0:01:46]} Ke7 {[%emt 0:03:19]} 25. Rxg7+ {[%emt 0:05:57]} Nxg7 {[%emt 0:00:04]} 26. Qxg7+ {[%emt 0:04:58]} Kd8 {[%emt 0:00:06]} 27. Bb4 {[%emt 0:03:08]} Kc7 {[%emt 0:04:09]} 28. Bb5 {[%emt 0:01:20]} Rd8 {[%emt 0:04:03]} 29. Bxa4 {[%emt 0:01:26]} Qxb1 {[%emt 0:00:16]} 30. Bxd6+ {[%emt 0:01:36]} Kxd6 {[%emt 0:07:00]} 31. Qf6+ {[%emt 0:00:51]} Kc5 {[%emt 0:00:13]} 32. Qe7+ {[%emt 0:00:28]} Kc4 {[%emt 0:00:27]} 33. Bb3+ {[%emt 0:00:24]} Kb5 {[%emt 0:00:06]} 34. a4+ {[%emt 0:00:32]} Kb6 {[%emt 0:04:08]} 35. Qb4+ {[%emt 0:01:20]} Kc7 {[%emt 0:00:12]} 36. Qc3+ {[%emt 0:00:31]} Kb8 {[%emt 0:00:58]} 37. Qxe5+ {[%emt 0:00:07]} Ka7 {[%emt 0:00:05]} 38. Qd4+ {[%emt 0:00:43]} b6 {[%emt 0:00:19]} 39. Qxb2 {[%emt 0:00:41]} Qxb2 {[%emt 0:01:40]} 40. Nxb2 {[%emt 0:00:01]} Rh8 {[%emt 0:00:31]} 41. Nd3 {[%emt 0:07:51]} Rh2 {[%emt 0:06:03]} 42. Ne5 {[%emt 0:02:21]} Be8 {[%emt 0:00:17]} 43. d6 {[%emt 0:08:35]} Rb2 {[%emt 0:05:05]} 44. Bd1 {[%emt 0:06:45]} Rg2 {[%emt 0:00:16]} 45. Nf5 {[%emt 0:00:38]} Rxg5 {[%emt 0:01:20]} 46. f4 {[%emt 0:01:45]} Rg2 {[%emt 0:07:58]} 47. Bf3 {[%emt 0:00:48]} Ra2 {[%emt 0:00:04]} 48. d7 {[%emt 0:00:36]} Bxd7 {[%emt 0:00:05]} 49. Nxd7 {[%emt 0:00:10]} Rg8 {[%emt 0:00:10]} 50. Be2 {[%emt 0:01:20]} Rg2 {[%emt 0:01:47]} 51. Nd4 {[%emt 0:00:57]} Rxa4 {[%emt 0:00:37]} 52. Ne5 {[%emt 0:00:16]} Kb7 {[%emt 0:01:00]} 53. Nef3 {[%emt 0:00:26]} Ra1+ {[%emt 0:01:44]} 54. Kd2 {[%emt 0:00:27]} b5 {[%emt 0:00:24]} 55. e5 {[%emt 0:01:28]} b4 {[%emt 0:00:35]} 56. e6 {[%emt 0:01:06]} Kc7 {[%emt 0:01:55]} 57. f5 {[%emt 0:01:24]} Kd6 {[%emt 0:01:48]} 58. Ke3 {[%emt 0:00:49]} Ke7 {[%emt 0:04:18]} 59. Bc4 {[%emt 0:00:46]} Rg4 {[%emt 0:00:48]} 60. Ne5 {[%emt 0:01:46]} Ra3+ {[%emt 0:00:31]} 61. Bd3 {[%emt 0:00:21]} Rg8 {[%emt 0:03:59]} 62. Ke4 {[%emt 0:00:39]} b3 {[%emt 0:00:19]} 63. Nd7 {[%emt 0:00:35]} Rg4+ {[%emt 0:01:22]} 64. Ke5 {[%emt 0:00:42]} Ra5+ {[%emt 0:03:16]} 65. Bb5 {[%emt 0:00:23]} Rxd4 {[%emt 0:00:53]} 66. f6+ {[%emt 0:00:08]} Kd8 {[%emt 0:00:04]} 67. e7+ {[%emt 0:00:20]} Ke8 {[%emt 0:00:12]} 68. Ke6 {[%emt 0:00:42]} Rd6+ 1-0

[Event "WJCC U20 Open 2019"]
[Site "New Delhi"]
[Date "2019.10.24"]
[Round "10.39"]
[White "Amartuvshin, Ganzorig"]
[Black "Jablonicky, Martin"]
[Result "1-0"]
[ECO "E94"]
[WhiteElo "2391"]
[BlackElo "2333"]
[Annotator "NA RC"]
[PlyCount "85"]
[EventDate "2019.10.15"]
[EventType "swiss"]
[EventCountry "IND"]
[SourceTitle "playchess.com"]
[Source "ChessBase"]
[SourceQuality "1"]
[TimeControl "40/5400+30:1800+30"]

1. d4 {[%emt 0:00:00]} Nf6 {[%emt 0:00:29]} 2. c4 {[%emt 0:00:00]} g6 {[%emt 0:00:24]} 3. Nc3 {[%emt 0:00:00]} Bg7 {[%emt 0:00:04]} 4. e4 {[%emt 0:00:00]} d6 {[%emt 0:00:04]} 5. Be2 {[%emt 0:00:00]} O-O {[%emt 0:00:05]} 6. Nf3 {[%emt 0:00:00]} e5 {[%emt 0:00:04]} 7. O-O {[%emt 0:00:56]} Nbd7 {[%emt 0:00:44]} 8. Be3 {[%emt 0:00:07]} Ng4 {[%emt 0:00:08]} 9. Bg5 {[%emt 0:00:06]} f6 {[%emt 0:00:04]} 10. Bh4 {[%emt 0:00:24]} Nh6 {[%emt 0:00:11]} 11. Rc1 {[%emt 0:06:53]} Nf7 {[%emt 0:01:56]} 12. b4 {[%emt 0:03:27]} h5 {[%emt 0:00:29]} 13. Bg3 {[%emt 0:00:43]} Ng5 {[%emt 0:01:27]} 14. Nh4 {[%emt 0:02:26]} exd4 {[%emt 0:04:47]} 15. Nd5 {[%emt 0:00:53]} Kh7 {[%emt 0:13:33]} 16. Bd3 {[%emt 0:01:30]} Ne5 {[%emt 0:02:16]} 17. f4 {[%emt 0:07:12]} Bg4 {[%emt 0:05:13]} 18. Qd2 {[%emt 0:00:25]} c6 {[%emt 0:04:19]} 19. h3 {[%emt 0:16:01]} cxd5 {[%emt 0:03:45]} 20. exd5 {[%emt 0:00:55]} Nxd3 {[%emt 0:20:33]} 21. Qxd3 {[%emt 0:00:11]} Ne4 {[%emt 0:00:33]} 22. hxg4 {[%emt 0:05:50]} f5 {[%emt 0:01:20]} 23. gxf5 {[%emt 0:00:08]} gxf5 {[%emt 0:00:05]} 24. Nxf5 {[%emt 0:00:15]} Rxf5 {[%emt 0:00:04]} 25. Qxe4 {[%emt 0:00:08]} Qf6 {[%emt 0:00:04]} 26. Rce1 {[%emt 0:00:59]} Qg6 {[%emt 0:00:39]} 27. Qd3 {[%emt 0:02:45]} Rg8 {[%emt 0:03:39]} 28. Re6 {[%emt 0:04:33]} Bf6 {[%emt 0:00:04]} 29. Rf2 {[%emt 0:00:10]} Kh8 {[%emt 0:05:36]} 30. Bh4 {[%emt 0:01:04]} Rf8 {[%emt 0:00:26]} 31. Bxf6+ {[%emt 0:00:42]} R8xf6 {[%emt 0:00:39]} 32. Qxd4 {[%emt 0:00:06]} Kh7 {[%emt 0:01:12]} 33. Re7+ {[%emt 0:00:34]} Rf7 {[%emt 0:00:09]} 34. Rxf7+ {[%emt 0:00:30]} Rxf7 {[%emt 0:00:07]} 35. f5 {[%emt 0:00:13]} Qg5 {[%emt 0:03:05]} 36. f6 {[%emt 0:00:45]} b6 {[%emt 0:01:34]} 37. Qe4+ {[%emt 0:01:15]} Qg6 {[%emt 0:00:50]} 38. Qf4 {[%emt 0:00:17]} Qb1+ {[%emt 0:00:42]} 39. Kh2 {[%emt 0:01:10]} Qxb4 {[%emt 0:01:08]} 40. Qf5+ {[%emt 0:00:29]} Kh6 {[%emt 0:01:24]} 41. Qe6 {[%emt 0:30:16]} Kg6 {[%emt 0:30:33]} 42. Qe4+ {[%emt 0:00:17]} Kh6 {[%emt 0:00:12]} 43. Qe8 {[%emt 0:00:07]} 1-0

[Event "WJCC U20 Open 2019"]
[Site "New Delhi"]
[Date "2019.10.24"]
[Round "10.40"]
[White "Papadiamandis, Elliot"]
[Black "Kukelko, Alexey"]
[Result "1/2-1/2"]
[ECO "B40"]
[WhiteElo "2190"]
[BlackElo "2342"]
[Annotator "NA RC"]
[PlyCount "67"]
[EventDate "2019.10.15"]
[EventType "swiss"]
[EventCountry "IND"]
[SourceTitle "playchess.com"]
[Source "ChessBase"]
[SourceQuality "1"]
[TimeControl "40/5400+30:1800+30"]

1. e4 {[%emt 0:00:00]} c5 {[%emt 0:00:00]} 2. Nf3 {[%emt 0:00:00]} e6 {[%emt 0:00:00]} 3. d4 {[%emt 0:00:00]} cxd4 {[%emt 0:00:00]} 4. Nxd4 {[%emt 0:00:00]} Qb6 {[%emt 0:00:00]} 5. Nb3 {[%emt 0:01:23]} Nc6 {[%emt 0:00:43]} 6. Be3 {[%emt 0:00:46]} Qc7 {[%emt 0:00:10]} 7. Nc3 {[%emt 0:03:40]} Nf6 {[%emt 0:00:44]} 8. a3 {[%emt 0:00:58]} a6 {[%emt 0:00:35]} 9. Be2 {[%emt 0:00:27]} b5 {[%emt 0:00:14]} 10. O-O {[%emt 0:00:44]} d6 {[%emt 0:00:13] B33: Sicilian: Pelikan and Sveshnikov Variations} (10... Ne5 11. f4 Nc4 12. Bxc4 bxc4 13. e5 cxb3 14. exf6 Bb7 15. fxg7 Bxg7 16. cxb3 Bxc3 17. bxc3 Rg8 18. Ra2 Qxc3 {0-1 (43) Yu,K (2375)-Naiditsch,A (2698) Jiangmen 2018}) 11. f4 {[%emt 0:01:29]} Be7 {[%emt 0:00:38]} 12. Bf3 {[%emt 0:01:06]} Bb7 {[%emt 0:00:12]} 13. Qd2 {[%emt 0:01:37]} O-O {[%emt 0:00:17]} 14. Rad1 {[%emt 0:02:49]} Rac8 {[%emt 0:02:52]} 15. Qf2 {[%emt 0:02:21]} Nd7 {[%emt 0:01:42]} 16. Rd2 {[%emt 0:06:17]} Rfe8 $146 {[%emt 0:13:26]} ({Predecessor:} 16... Ba8 17. Rfd1 Rfd8 18. g4 Rb8 19. g5 Nb6 20. Re2 Nc4 21. Bc1 {0-1 (62) Basener,W (2210)-Terekhov,A (2318) Munich 2007}) 17. g4 {[%emt 0:05:51]} Na5 {[%emt 0:23:38]} 18. Nxa5 {[%emt 0:03:50]} Qxa5 {[%emt 0:00:04]} 19. g5 {[%emt 0:15:41]} b4 {[%emt 0:05:47]} 20. axb4 $11 {[%emt 0:09:54]} Qxb4 {[%emt 0:00:03]} 21. Nd1 {[%emt 0:01:23]} Nc5 {[%emt 0:10:53]} 22. Rd4 {[%emt 0:05:36]} Qb5 {[%emt 0:00:18]} 23. b4 {[%emt 0:00:38]} Nd7 {[%emt 0:03:40]} 24. Be2 {[%emt 0:02:11]} Qa4 {[%emt 0:02:16]} 25. c3 {[%emt 0:03:03]} e5 {[%emt 0:01:46]} 26. fxe5 {[%emt 0:00:43]} Nxe5 {[%emt 0:00:21]} 27. Bf4 {[%emt 0:08:22]} Rf8 {[%emt 0:11:23]} 28. Qg3 {[%emt 0:01:30]} Qa2 {[%emt 0:02:39]} 29. Rf2 {[%emt 0:01:21]} Qe6 {[%emt 0:09:05]} 30. Bxe5 {[%emt 0:00:51]} dxe5 {[%emt 0:00:03]} 31. Bg4 {[%emt 0:00:19]} Qb6 {[%emt 0:01:42]} 32. Qxe5 {[%emt 0:02:20]} Rce8 {[%emt 0:00:38]} 33. Qg3 {[%emt 0:10:01]} Rd8 {[%emt 0:04:36]} 34. Qe5 {[%emt 0:02:29]} 1/2-1/2

[Event "WJCC U20 Open 2019"]
[Site "New Delhi"]
[Date "2019.10.24"]
[Round "10.42"]
[White "Lama, Milan"]
[Black "Davis, Holden"]
[Result "0-1"]
[ECO "C01"]
[WhiteElo "1976"]
[BlackElo "1817"]
[Annotator "NA"]
[PlyCount "112"]
[EventDate "2019.10.15"]
[EventType "swiss"]
[EventCountry "IND"]
[SourceTitle "playchess.com"]
[Source "ChessBase"]
[SourceQuality "1"]
[TimeControl "40/5400+30:1800+30"]

1. e4 {[%emt 0:00:00]} e6 {[%emt 0:00:00]} 2. d4 {[%emt 0:00:00]} d5 {[%emt 0:00:00]} 3. exd5 {[%emt 0:00:00]} exd5 {[%emt 0:00:00]} 4. Bd3 {[%emt 0:00:05]} c5 {[%emt 0:00:36]} 5. c3 {[%emt 0:00:09]} Nc6 {[%emt 0:00:16]} 6. Ne2 {[%emt 0:01:25]} Nf6 {[%emt 0:00:23]} 7. O-O {[%emt 0:00:13] C01: French: Exchange Variation} cxd4 {[%emt 0:01:31]} (7... Be7 8. dxc5 Bxc5 9. Bg5 O-O 10. Bc2 Re8 11. Nd4 h6 12. Bh4 Bg4 13. f3 Bd7 14. Kh1 Rc8 15. Na3 Ne5 16. Bb3 Bxa3 17. Bxf6 Qxf6 18. bxa3 Rxc3 19. Bxd5 Rd3 20. Qc1 {0-1 (20) Hrdina,R (2268)-Pechac,J (2472) Prague 2019}) 8. Nxd4 {[%emt 0:00:25]} Nxd4 {[%emt 0:01:21]} 9. cxd4 {[%emt 0:00:06]} Be7 {[%emt 0:00:14]} 10. Nc3 {[%emt 0:00:33]} O-O {[%emt 0:00:59]} 11. Qb3 {[%emt 0:01:29]} Bd6 $146 {[%emt 0:07:36]} ({Predecessor:} 11... b6 12. Bf4 Bb7 13. Rac1 Ne4 14. Rfe1 Nxc3 15. Rxc3 {½-½ (47) Schaper,B (2129)-Mueller,H (2199) Germany 2011}) 12. h3 {[%emt 0:03:01]} h6 {[%emt 0:03:41]} 13. Be3 {[%emt 0:04:02]} Re8 {[%emt 0:01:59]} 14. Rac1 {[%emt 0:02:35]} Bb8 {[%emt 0:13:49]} 15. Ne2 {[%emt 0:09:43]} Nh5 {[%emt 0:05:48]} 16. Bb1 {[%emt 0:15:35]} Qd6 {[%emt 0:05:27]} 17. f4 {[%emt 0:00:49]} Nf6 {[%emt 0:04:08]} 18. Ng3 {[%emt 0:02:39]} Bc7 {[%emt 0:07:32]} 19. Rf3 {[%emt 0:14:14]} Bb6 $15 {[%emt 0:01:10]} 20. Nf5 {[%emt 0:16:38]} Bxf5 {[%emt 0:01:39]} 21. Bxf5 {[%emt 0:01:14]} Ne4 {[%emt 0:00:16]} 22. Qd1 {[%emt 0:05:29]} Rad8 {[%emt 0:04:16]} 23. g3 {[%emt 0:05:28]} g6 {[%emt 0:02:16]} 24. Bxe4 {[%emt 0:00:23]} dxe4 {[%emt 0:02:04]} 25. Rf2 {[%emt 0:00:20]} Bxd4 {[%emt 0:01:02]} 26. Bxd4 {[%emt 0:01:21]} Qxd4 {[%emt 0:01:02]} 27. Qxd4 {[%emt 0:00:07]} Rxd4 {[%emt 0:00:04]} 28. Rc7 {[%emt 0:00:06]} Rb4 {[%emt 0:05:23]} 29. Rd2 {[%emt 0:00:46]} e3 {[%emt 0:01:26]} 30. Re2 {[%emt 0:00:10]} Kg7 {[%emt 0:03:28]} 31. Kg2 {[%emt 0:00:33]} g5 {[%emt 0:10:02]} 32. fxg5 hxg5 {[%emt 0:00:06]} 33. b3 {[%emt 0:04:10]} Rb6 {[%emt 0:02:04]} 34. Rc3 {[%emt 0:03:16]} Ra6 {[%emt 0:00:28]} 35. Rc7 {[%emt 0:01:15]} Rb6 {[%emt 0:01:00]} 36. Rc3 {[%emt 0:02:53]} Rd6 {[%emt 0:00:17]} 37. Rc7 {[%emt 0:00:35]} Kg6 38. Rc3 {[%emt 0:02:05]} f5 {[%emt 0:11:09]} 39. Kf3 {[%emt 0:01:05]} Rh8 {[%emt 0:01:45]} 40. Rcxe3 {[%emt 0:03:31]} Rxh3 {[%emt 0:00:36]} 41. Re6+ {[%emt 0:31:02]} Rxe6 {[%emt 0:30:05]} 42. Rxe6+ {[%emt 0:00:04]} Kf7 {[%emt 0:00:06]} 43. Rd6 {[%emt 0:00:00]} f4 {[%emt 0:00:00]} 44. Rd7+ {[%emt 0:00:00]} Ke6 {[%emt 0:00:00]} 45. Rxb7 {[%emt 0:00:00]} Rxg3+ {[%emt 0:00:00]} 46. Kf2 {[%emt 0:00:00]} Rc3 {[%emt 0:00:00]} 47. Rb5 {[%emt 0:00:00]} Kf6 {[%emt 0:00:00]} 48. Ra5 {[%emt 0:00:00]} g4 {[%emt 0:00:00]} 49. Rxa7 {[%emt 0:00:00]} Rc2+ {[%emt 0:00:00]} 50. Kg1 {[%emt 0:00:00]} g3 {[%emt 0:00:00]} 51. Ra8 {[%emt 0:00:00]} Kf5 {[%emt 0:00:00]} 52. b4 {[%emt 0:00:00]} f3 {[%emt 0:00:00]} 53. Rf8+ {[%emt 0:00:00]} Ke4 {[%emt 0:00:00]} 54. Re8+ {[%emt 0:00:00]} Kd5 {[%emt 0:00:00]} 55. Rd8+ {[%emt 0:00:00]} Ke6 {[%emt 0:00:00]} 56. Rd1 {[%emt 0:00:00]} Rg2+ {[%emt 0:00:00]} 0-1

[Event "WJCC U20 Open 2019"]
[Site "New Delhi"]
[Date "2019.10.24"]
[Round "10.43"]
[White "Hamad Essam"]
[Black "Mohd Saprin, Amir Ghaazi"]
[Result "1-0"]
[ECO "C77"]
[WhiteElo "1849"]
[BlackElo "1942"]
[Annotator "NA RC"]
[PlyCount "63"]
[EventDate "2019.10.15"]
[EventType "swiss"]
[EventCountry "IND"]
[SourceTitle "playchess.com"]
[Source "ChessBase"]
[SourceQuality "1"]
[TimeControl "40/5400+30:1800+30"]

1. e4 {[%emt 0:00:00]} e5 {[%emt 0:00:31]} 2. Nf3 {[%emt 0:00:00]} Nc6 {[%emt 0:00:08]} 3. Bb5 {[%emt 0:00:00]} a6 {[%emt 0:00:04]} 4. Ba4 {[%emt 0:00:26]} Nf6 {[%emt 0:00:06]} 5. Qe2 {[%emt 0:00:29]} b5 {[%emt 0:00:06]} 6. Bb3 {[%emt 0:00:06]} Bc5 {[%emt 0:00:05]} 7. c3 {[%emt 0:01:37]} d6 {[%emt 0:00:31]} 8. d3 {[%emt 0:01:16]} h6 {[%emt 0:01:37]} 9. h3 {[%emt 0:02:20]} O-O {[%emt 0:02:42]} 10. g4 {[%emt 0:01:34]} Be6 {[%emt 0:27:58]} 11. g5 {[%emt 0:13:20]} Bxb3 {[%emt 0:02:39]} 12. gxf6 {[%emt 0:03:16]} Be6 {[%emt 0:01:08]} 13. fxg7 {[%emt 0:00:28]} Kxg7 {[%emt 0:00:19]} 14. Rg1+ {[%emt 0:01:47]} Kh7 {[%emt 0:00:59]} 15. Bxh6 {[%emt 0:06:12]} Kxh6 {[%emt 0:08:13]} 16. Qd2+ {[%emt 0:02:54]} Kh7 {[%emt 0:02:03]} 17. Ng5+ {[%emt 0:00:16]} Kh8 {[%emt 0:00:08]} 18. Qe2 {[%emt 0:01:24]} Bg4 {[%emt 0:27:37]} 19. Qxg4 {[%emt 0:04:11]} Bxf2+ {[%emt 0:00:10]} 20. Kxf2 {[%emt 0:00:04]} Qf6+ {[%emt 0:00:15]} 21. Nf3 {[%emt 0:01:40]} Qh6 {[%emt 0:00:52]} 22. Qh4 {[%emt 0:00:03]} Qxh4+ {[%emt 0:00:50]} 23. Nxh4 {[%emt 0:00:02]} Ne7 {[%emt 0:00:39]} 24. Nd2 {[%emt 0:00:22]} f5 {[%emt 0:01:10]} 25. exf5 {[%emt 0:00:14]} Rf7 {[%emt 0:02:11]} 26. Ke2 {[%emt 0:00:31]} Nxf5 {[%emt 0:00:52]} 27. Raf1 {[%emt 0:00:06]} Nh6 {[%emt 0:00:52]} 28. Rxf7 {[%emt 0:00:09]} Nxf7 {[%emt 0:00:04]} 29. Ne4 {[%emt 0:00:05]} Nd8 {[%emt 0:01:55]} 30. Rg6 {[%emt 0:00:22]} Nc6 {[%emt 0:00:31]} 31. Nf5 {[%emt 0:00:27]} Rf8 {[%emt 0:01:17]} 32. Nf6 {[%emt 0:00:12]} 1-0

[Event "WJCC U20 Open 2019"]
[Site "New Delhi"]
[Date "2019.10.24"]
[Round "10.44"]
[White "Swarnavo Choudhury"]
[Black "De Silva, L M S T"]
[Result "1/2-1/2"]
[ECO "C96"]
[WhiteElo "1797"]
[BlackElo "1879"]
[Annotator "NA RC"]
[PlyCount "59"]
[EventDate "2019.10.15"]
[EventType "swiss"]
[EventCountry "IND"]
[SourceTitle "playchess.com"]
[Source "ChessBase"]
[SourceQuality "1"]
[TimeControl "40/5400+30:1800+30"]

1. e4 {[%emt 0:00:00]} e5 {[%emt 0:00:00]} 2. Nf3 {[%emt 0:00:00]} Nc6 {[%emt 0:00:00]} 3. Bb5 {[%emt 0:00:00]} a6 {[%emt 0:00:00]} 4. Ba4 {[%emt 0:00:00]} Nf6 {[%emt 0:00:37]} 5. O-O {[%emt 0:00:40]} Be7 {[%emt 0:00:13]} 6. Re1 {[%emt 0:00:23]} b5 {[%emt 0:00:33]} 7. Bb3 {[%emt 0:00:08]} d6 {[%emt 0:00:23]} 8. c3 {[%emt 0:00:13]} O-O {[%emt 0:00:03]} 9. h3 {[%emt 0:01:17]} Na5 {[%emt 0:00:21]} 10. Bc2 {[%emt 0:03:38]} c5 {[%emt 0:00:30]} 11. d4 {[%emt 0:00:23]} Nd7 {[%emt 0:00:53]} 12. Nbd2 {[%emt 0:00:40]} exd4 {[%emt 0:03:57]} 13. cxd4 {[%emt 0:00:22]} Nc6 {[%emt 0:00:17]} 14. d5 {[%emt 0:01:16]} Nce5 {[%emt 0:00:07]} 15. Nxe5 {[%emt 0:02:42] C96: Closed Ruy Lopez: Chigorin Defence: 11 d4, replies other than 11...Qc7} (15. a4 Rb8 16. Nxe5 Nxe5 17. f4 Ng6 18. Nf3 Bh4 19. Rf1 Bg3 20. f5 Ne5 21. Ng5 h6 22. f6 gxf6 {0-1 (43) Firouzja,A (2682)-Martinez Alcantara,J (2583) chess.com INT 2019}) 15... Nxe5 {[%emt 0:00:12]} 16. f4 {[%emt 0:00:13]} Ng6 {[%emt 0:00:06]} 17. Nf3 {[%emt 0:00:52]} Bh4 {[%emt 0:00:07]} 18. Nxh4 {[%emt 0:03:14]} Qxh4 {[%emt 0:00:06]} 19. f5 {[%emt 0:00:59]} Ne5 {[%emt 0:02:08]} 20. Rf1 {[%emt 0:03:32]} Re8 {[%emt 0:08:23]} 21. Bf4 {[%emt 0:01:48]} a5 {[%emt 0:08:32]} 22. Qc1 $146 {[%emt 0:14:50]} ({Predecessor:} 22. Rf2 a4 {0-1 (40) Elman,C (2042)-Della Morte,G (2374) Buenos Aires 2018}) 22... h6 $11 {[%emt 0:03:18]} 23. Kh2 {[%emt 0:05:28]} Ba6 {[%emt 0:12:47]} 24. g3 {[%emt 0:05:02]} Qf6 {[%emt 0:21:18]} 25. g4 {[%emt 0:04:08]} Qh4 {[%emt 0:06:29]} 26. Bg3 {[%emt 0:02:10]} Qf6 {[%emt 0:00:52]} 27. Bf4 {[%emt 0:00:19]} Qh4 {[%emt 0:04:55]} 28. Bg3 {[%emt 0:00:05]} Qf6 {[%emt 0:00:12]} 29. Bf4 {[%emt 0:00:05]} Qh4 {[%emt 0:01:10]} 30. Bg3 {[%emt 0:00:14]} 1/2-1/2